fUSD/lending_fUSD_20260307
["ID","MTS","AMOUNT","RATE_DAILY","PERIOD"]
[407874806,1772867438948,-500.0,0.00016587,2]
[407874807,1772867438958,-500.0,0.00016641,2]
[407874808,1772867438967,-152.28,0.00016663,2]
[407874809,1772867438976,-456.0,0.00016696,2]
[407874810,1772867438986,-200.0,0.00016722,2]
[407874811,1772867438995,-2947.99147517,0.00016757,2]
[407874812,1772867439004,-1008.61,0.00016823,2]
[407874813,1772867439013,-1012.2,0.00016823,2]
[407874814,1772867439022,-500.0,0.00016929,2]
[407874815,1772867439031,-500.0,0.00016929,2]
[407874816,1772867439041,-500.0,0.00016929,2]
[407874817,1772867439053,-150.0,0.00016929,2]
[407874818,1772867439062,-150.0,0.00016929,2]
[407874819,1772867439072,-500.0,0.00016929,2]
[407874820,1772867439081,-500.0,0.00016929,2]
[407874821,1772867439093,-500.0,0.00016929,2]
[407874822,1772867439103,-1354.0,0.00016929,2]
[407874823,1772867439113,-623.0,0.00016929,2]
[407874824,1772867439122,-500.0,0.00016929,2]
[407874825,1772867439131,-1949.0,0.00016929,2]
[407874826,1772867439140,-874.0,0.00016929,2]
[407874827,1772867439150,-500.0,0.00016929,2]
[407874828,1772867439160,-500.0,0.00016929,2]
[407874829,1772867439169,-881.0,0.00016929,2]
[407874830,1772867439178,-500.0,0.00016929,2]
[407874831,1772867439187,-500.0,0.00016929,2]
[407874832,1772867439196,-152.28,0.00016933,2]
[407874833,1772867439205,-189.66285771,0.00016967,2]
[407874834,1772867439215,-505.41983925,0.00016973,2]
[407874835,1772867439224,-500.94808155,0.00016984,2]
[407874836,1772867439233,-500.0,0.00016984,2]
[407874837,1772867439242,-500.0,0.00016984,2]
[407874838,1772867439252,-150.0,0.00016984,2]
[407874839,1772867439263,-150.0,0.00016984,2]
[407874840,1772867439272,-500.0,0.00016984,2]
[407874841,1772867439282,-500.0,0.00016984,2]
[407874842,1772867439291,-500.0,0.00016984,2]
[407874843,1772867439300,-1354.0,0.00016984,2]
[407874844,1772867439310,-623.0,0.00016984,2]
[407874845,1772867439322,-500.0,0.00016984,2]
[407874846,1772867439331,-1949.0,0.00016984,2]
[407874847,1772867439343,-874.0,0.00016984,2]
[407874848,1772867439353,-500.0,0.00016984,2]
[407874849,1772867439362,-500.42886852,0.00016984,2]
[407874850,1772867439372,-500.85355139,0.00016984,2]
[407874851,1772867439381,-881.0,0.00016984,2]
[407874852,1772867439391,-500.0,0.00016984,2]
[407874853,1772867439401,-1480.0,0.00017038,2]
[407874854,1772867439411,-500.0,0.00017039,2]
[407874855,1772867439421,-500.0,0.00017039,2]
[407874856,1772867439431,-150.0,0.00017039,2]
[407874857,1772867439442,-150.0,0.00017039,2]
[407874858,1772867439451,-500.0,0.00017039,2]
[407874859,1772867439460,-500.0,0.00017039,2]
[407874860,1772867439471,-500.0,0.00017039,2]
[407874861,1772867439481,-1354.0,0.00017039,2]
[407874862,1772867439493,-623.0,0.00017039,2]
[407874863,1772867439502,-500.0,0.00017039,2]
[407874864,1772867439511,-1949.0,0.00017039,2]
[407874865,1772867439520,-874.0,0.00017039,2]
[407874866,1772867439531,-500.0,0.00017039,2]
[407874867,1772867439540,-881.0,0.00017039,2]
[407874868,1772867439549,-500.0,0.00017039,2]
[407874869,1772867439558,-500.0,0.00017093,2]
[407874870,1772867439567,-500.0,0.00017093,2]
[407874871,1772867439576,-150.0,0.00017093,2]
[407874872,1772867439586,-150.0,0.00017093,2]
[407874873,1772867439595,-500.0,0.00017093,2]
[407874874,1772867439605,-500.0,0.00017093,2]
[407874875,1772867439614,-500.0,0.00017093,2]
[407874876,1772867439624,-1354.0,0.00017093,2]
[407874877,1772867439633,-623.0,0.00017093,2]
[407874878,1772867439643,-500.0,0.00017093,2]
[407874879,1772867439652,-1949.0,0.00017093,2]
[407874880,1772867439664,-874.0,0.00017093,2]
[407874881,1772867439673,-500.0,0.00017093,2]
[407874882,1772867439683,-500.0,0.00017093,2]
[407874883,1772867439692,-881.0,0.00017093,2]
[407874884,1772867439701,-500.0,0.00017148,2]
[407874885,1772867439710,-500.0,0.00017148,2]
[407874886,1772867439719,-150.0,0.00017148,2]
[407874887,1772867439728,-266.0,0.00017148,2]
[407874888,1772867439737,-500.0,0.00017148,2]
[407874889,1772867439747,-179.48565848,0.00017148,2]
[407874890,1772867439756,-500.0,0.00017148,2]
[407874891,1772867439766,-1354.0,0.00017148,2]
[407874892,1772867439775,-623.0,0.00017148,2]
[407874893,1772867439785,-500.0,0.00017148,2]
[407874894,1772867439794,-1949.0,0.00017148,2]
[407874895,1772867439803,-874.0,0.00017148,2]
[407874896,1772867439813,-500.0,0.00017148,2]
[407874897,1772867439822,-500.0,0.00017148,2]
[407874898,1772867439831,-881.0,0.00017148,2]
[407874899,1772867439840,-500.0,0.00017203,2]
[407874900,1772867439849,-500.0,0.00017203,2]
[407874901,1772867439859,-250.0,0.00017203,2]
[407874902,1772867439868,-500.0,0.00017203,2]
[407874903,1772867439878,-500.0,0.00017203,2]
[407874904,1772867439887,-1354.0,0.00017203,2]
[407874905,1772867439897,-623.0,0.00017203,2]
[407874906,1772867439907,-500.0,0.00017203,2]
[407874907,1772867439916,-1949.0,0.00017203,2]
[407874908,1772867439925,-874.0,0.00017203,2]
[407874909,1772867439934,-500.0,0.00017203,2]
[407874910,1772867439943,-881.0,0.00017203,2]
[407874911,1772867439952,-500.0,0.00017203,2]
[407874912,1772867439962,-152.28,0.00017203,2]
[407874913,1772867439971,-500.0,0.00017258,2]
[407874914,1772867439979,-554.61846768,0.00017258,2]
[407874915,1772867439989,-500.0,0.00017258,2]
[407874916,1772867439999,-500.0,0.00017258,2]
[407874917,1772867440008,-1354.0,0.00017258,2]
[407874918,1772867440017,-623.0,0.00017258,2]
[407874919,1772867440027,-500.0,0.00017258,2]
[407874920,1772867440037,-1949.0,0.00017258,2]
[407874921,1772867440048,-874.0,0.00017258,2]
[407874922,1772867440057,-351.70358089,0.00017258,2]
[407874923,1772867440066,-881.0,0.00017258,2]
[407874924,1772867440075,-500.0,0.00017258,2]
[407874925,1772867440085,-3060.17169489,0.0001726,2]
[407874926,1772867440095,-500.0,0.00017313,2]
[407874927,1772867440108,-322.1097908,0.00017313,2]
[407874928,1772867440118,-500.0,0.00017313,2]
[407874929,1772867440127,-1354.0,0.00017313,2]
[407874930,1772867440136,-623.0,0.00017313,2]
[407874931,1772867440145,-464.79407583,0.00017313,2]
[407874932,1772867440155,-1949.0,0.00017313,2]
[407874933,1772867440163,-874.0,0.00017313,2]
[407874934,1772867440172,-881.0,0.00017313,2]
[407874935,1772867440181,-500.0,0.00017313,2]
[407874936,1772867440191,-500.0,0.00017367,2]
[407874937,1772867440202,-500.0,0.00017367,2]
[407874938,1772867440214,-1354.0,0.00017367,2]
[407874939,1772867440225,-623.0,0.00017367,2]
[407874940,1772867440234,-1949.0,0.00017367,2]
[407874941,1772867440245,-874.0,0.00017367,2]
[407874942,1772867440254,-881.0,0.00017367,2]
[407874943,1772867440265,-500.0,0.00017367,2]
[407874944,1772867440275,-3770.27,0.0001737,2]
[407874945,1772867440284,-2947.99147517,0.00017386,2]
[407874946,1772867440293,-500.0,0.00017422,2]
[407874947,1772867440304,-500.0,0.00017422,2]
[407874948,1772867440314,-1354.0,0.00017422,2]
[407874949,1772867440323,-623.0,0.00017422,2]
[407874950,1772867440333,-1949.0,0.00017422,2]
[407874951,1772867440343,-874.0,0.00017422,2]
[407874952,1772867440352,-881.0,0.00017422,2]
[407874953,1772867440362,-273.854613,0.00017422,2]
[407874954,1772867440372,-3619.52696627,0.00017456,2]
[407874955,1772867440381,-152.28,0.00017473,2]
[407874956,1772867440391,-500.0,0.00017477,2]
[407874957,1772867440400,-556.91112057,0.00017477,2]
[407874958,1772867440411,-1354.0,0.00017477,2]
[407874959,1772867440420,-623.0,0.00017477,2]
[407874960,1772867440430,-1949.0,0.00017477,2]
[407874961,1772867440440,-874.0,0.00017477,2]
[407874962,1772867440450,-881.0,0.00017477,2]
[407874963,1772867440460,-264.04850966,0.00017532,2]
[407874964,1772867440469,-623.0,0.00017532,2]
[407874965,1772867440479,-1354.0,0.00017532,2]
[407874967,1772867440489,-1949.0,0.00017532,2]
[407874969,1772867440498,-874.0,0.00017532,2]
[407874970,1772867440507,-881.0,0.00017532,2]
[407874971,1772867440517,-190.4,0.00017566,2]
[407874972,1772867440527,-623.0,0.00017587,2]
[407874973,1772867440538,-1354.0,0.00017587,2]
[407874974,1772867440547,-1949.0,0.00017587,2]
[407874975,1772867440557,-874.0,0.00017587,2]
[407874976,1772867440567,-881.0,0.00017587,2]
[407874977,1772867440576,-623.0,0.00017641,2]
[407874978,1772867440585,-1354.0,0.00017641,2]
[407874979,1772867440597,-1949.0,0.00017641,2]
[407874980,1772867440606,-874.0,0.00017641,2]
[407874981,1772867440617,-881.0,0.00017641,2]
[407874982,1772867440627,-623.0,0.00017696,2]
[407874983,1772867440639,-1354.0,0.00017696,2]
[407874984,1772867440649,-1949.0,0.00017696,2]
[407874985,1772867440659,-874.0,0.00017696,2]
[407874986,1772867440668,-881.0,0.00017696,2]
[407874987,1772867440677,-151.0,0.00017697,2]
[407874988,1772867440686,-189.66285771,0.000177,2]
[407874989,1772867440694,-241.38212231,0.000177,3]
[407874990,1772867440703,-770.15237636,0.000177,2]
[407874991,1772867440712,-1588.09,0.00017728,2]
[407874992,1772867440721,-152.28,0.00017743,2]
[407874993,1772867440731,-623.0,0.00017751,2]
[407874995,1772867440740,-1354.0,0.00017751,2]
[407874996,1772867440751,-1949.0,0.00017751,2]
[407874997,1772867440762,-874.0,0.00017751,2]
[407874998,1772867440771,-881.0,0.00017751,2]
[407874999,1772867440781,-623.0,0.00017806,2]
[407875000,1772867440790,-1354.0,0.00017806,2]
[407875001,1772867440799,-1949.0,0.00017806,2]
[407875002,1772867440808,-874.0,0.00017806,2]
[407875003,1772867440817,-881.0,0.00017806,2]
[407875004,1772867440827,-801.04557151,0.00017808,2]
[407875005,1772867440836,-623.0,0.00017861,2]
[407875006,1772867440845,-1354.0,0.00017861,2]
[407875007,1772867440854,-1949.0,0.00017861,2]
[407875008,1772867440863,-874.0,0.00017861,2]
[407875009,1772867440872,-881.0,0.00017861,2]
[407875010,1772867440881,-3901.88825898,0.000179,2]
[407875011,1772867440890,-3901.88825897,0.000179,2]
[407875012,1772867440899,-3901.88825897,0.000179,2]
[407875013,1772867440908,-3901.88825897,0.000179,2]
[407875014,1772867440917,-623.0,0.00017915,2]
[407875015,1772867440926,-1354.0,0.00017915,2]
[407875016,1772867440935,-1949.0,0.00017915,2]
[407875017,1772867440944,-874.0,0.00017915,2]
[407875018,1772867440958,-881.0,0.00017915,2]
[407875019,1772867440968,-3619.52696627,0.00017944,2]
[407875020,1772867440977,-2035.17,0.00017965,2]
[407875021,1772867440986,-623.0,0.0001797,2]
[407875022,1772867440995,-1354.0,0.0001797,2]
[407875023,1772867441004,-1949.0,0.0001797,2]
[407875024,1772867441013,-874.0,0.0001797,2]
[407875025,1772867441022,-881.0,0.0001797,2]
[407875026,1772867441031,-301.33104258,0.00018,5]
[407875027,1772867441040,-200.479585,0.00018,2]
[407875028,1772867441050,-152.28,0.00018013,2]
[407875029,1772867441061,-2947.99147517,0.00018014,2]
[407875030,1772867441070,-444.81251527,0.00018022,2]
[407875031,1772867441079,-623.0,0.00018025,2]
[407875032,1772867441088,-1354.0,0.00018025,2]
[407875033,1772867441097,-1949.0,0.00018025,2]
[407875034,1772867441106,-874.0,0.00018025,2]
[407875035,1772867441115,-881.0,0.00018025,2]
[407875036,1772867441124,-623.0,0.0001808,2]
[407875037,1772867441134,-1354.0,0.0001808,2]
[407875038,1772867441143,-1949.0,0.0001808,2]
[407875039,1772867441153,-874.0,0.0001808,2]
[407875040,1772867441162,-881.0,0.0001808,2]
[407875041,1772867441172,-2000.0,0.00018105,2]
[407875042,1772867441180,-623.0,0.00018134,2]
[407875043,1772867441189,-1949.0,0.00018134,2]
[407875044,1772867441199,-1354.0,0.00018134,2]
[407875045,1772867441208,-874.0,0.00018134,2]
[407875046,1772867441221,-881.0,0.00018134,2]
[407875047,1772867441230,-3060.17169489,0.0001814,2]
[407875048,1772867441239,-644.13672212,0.00018189,2]
[407875049,1772867441248,-1970.5059769,0.00018189,2]
[407875050,1772867441258,-1368.47469622,0.00018189,2]
[407875051,1772867441268,-887.50012509,0.00018189,2]
[407875052,1772867441277,-892.63932431,0.00018189,2]
[407875053,1772867441286,-152.28,0.00018283,2]
[407875054,1772867441296,-200.0,0.00018355,2]
[407875055,1772867441306,-168.0,0.00018414,2]
[407875056,1772867441315,-189.66285771,0.00018433,2]
[407875057,1772867441325,-3619.52696627,0.00018433,2]
[407875058,1772867441334,-168.0,0.00018442,2]
[407875059,1772867441344,-152.28,0.00018553,2]
[407875060,1772867441353,-2947.99147517,0.00018643,2]
[407875061,1772867441363,-1168.75,0.00018693,2]
[407875062,1772867441373,-500.0,0.00018716,2]
[407875063,1772867441382,-168.0,0.00018736,2]
[407875064,1772867441391,-168.0,0.00018813,2]
[407875065,1772867441401,-152.28,0.00018823,2]
[407875066,1772867441410,-574.0,0.00018836,2]
[407875067,1772867441425,-574.0,0.00018896,2]
[407875068,1772867441434,-3619.52696627,0.00018922,2]
[407875069,1772867441444,-1000.14,0.00019,2]
[407875070,1772867441463,-5298.46868171,0.00019,2]
[407875071,1772867441477,-329.59779913,0.00019,14]
[407875072,1772867441491,-4649.79498263,0.00019,2]
[407875073,1772867441500,-3060.17169489,0.0001902,2]
[407875074,1772867441509,-265.14,0.00019071,2]
[407875075,1772867441520,-152.34,0.00019093,2]
[407875076,1772867441530,-511.0,0.0001913,7]
[407875077,1772867441539,-189.66285771,0.00019167,2]
[407875078,1772867441548,-150.46480125,0.00019178,2]
[407875079,1772867441557,-2000.0,0.000192,2]
[407875080,1772867441566,-2947.99147517,0.00019271,2]
[407875081,1772867441575,-1008.61,0.00019346,2]
[407875082,1772867441583,-1012.2,0.00019346,2]
[407875083,1772867441592,-150.0,0.00019373,2]
[407875084,1772867441600,-9020.66352128,0.00019381,2]
[407875085,1772867441610,-500.0,0.00019381,2]
[407875086,1772867441619,-1469.73446645,0.00019381,2]
[407875087,1772867441628,-733.32656971,0.00019381,2]
[407875088,1772867441637,-2500.0,0.00019381,2]
[407875089,1772867441646,-315.19202845,0.00019381,2]
[407875090,1772867441657,-2500.0,0.00019381,2]
[407875091,1772867441666,-2500.0,0.00019381,2]
[407875092,1772867441677,-2500.0,0.00019381,2]
[407875093,1772867441687,-2500.0,0.00019381,2]
[407875094,1772867441697,-1165.68126867,0.00019381,2]
[407875095,1772867441706,-151.0,0.00019381,2]
[407875096,1772867441715,-693.3919763,0.00019381,2]
[407875097,1772867441724,-1000.0,0.00019381,2]
[407875098,1772867441734,-1000.0,0.00019381,2]
[407875099,1772867441743,-1000.0,0.00019381,2]
[407875100,1772867441752,-1000.0,0.00019381,2]
[407875101,1772867441761,-1000.0,0.00019381,2]
[407875102,1772867441771,-1000.0,0.00019381,2]
[407875103,1772867441780,-250.0,0.00019381,2]
[407875104,1772867441789,-905.71972075,0.00019381,2]
[407875105,1772867441798,-254.59029739,0.00019381,2]
[407875106,1772867441807,-500.0,0.00019381,2]
[407875107,1772867441816,-500.0,0.00019381,2]
[407875108,1772867441826,-500.0,0.00019381,2]
[407875109,1772867441835,-500.0,0.00019381,2]
[407875110,1772867441844,-500.0,0.00019381,2]
[407875111,1772867441853,-500.0,0.00019381,2]
[407875112,1772867441862,-500.0,0.00019381,2]
[407875113,1772867441871,-500.0,0.00019381,2]
[407875114,1772867441880,-500.0,0.00019381,2]
[407875115,1772867441889,-500.0,0.00019381,2]
[407875116,1772867441898,-500.0,0.00019381,2]
[407875117,1772867441907,-3619.52696627,0.00019411,2]
[407875118,1772867441916,-155.05699457,0.00019436,2]
[407875119,1772867441925,-719.04747942,0.00019436,2]
[407875120,1772867441934,-574.0,0.0001946,2]
[407875121,1772867441943,-745.65223616,0.00019491,2]
[407875122,1772867441952,-4000.0,0.000195,7]
[407875123,1772867441962,-773.2413689,0.00019546,2]
[407875124,1772867441971,-160.0,0.00019552,2]
[407875125,1772867441980,-172.78723296,0.00019553,2]
[407875126,1772867441989,-1064.33042176,0.000196,2]
[407875127,1772867441998,-800.0,0.000196,7]
[407875128,1772867442306,-801.85129955,0.00019601,2]
[407875129,1772867442316,-831.51979763,0.00019656,2]
[407875130,1772867442326,-800.0,0.000197,7]
[407875131,1772867442335,-862.28603014,0.00019711,2]
[407875132,1772867442344,-566.0,0.00019719,2]
[407875133,1772867442354,-150.0,0.00019719,2]
[407875134,1772867442364,-150.0,0.00019719,2]
[407875135,1772867442373,-150.0,0.00019719,2]
[407875136,1772867442382,-150.0,0.00019719,2]
[407875137,1772867442391,-288.0,0.00019719,2]
[407875138,1772867442400,-230.0,0.00019723,30]
[407875139,1772867442410,-150.0,0.00019726,2]
[407875140,1772867442419,-150.0,0.00019726,2]
[407875141,1772867442429,-500.0,0.00019726,2]
[407875142,1772867442438,-150.0,0.00019726,2]
[407875143,1772867442448,-266.51229189,0.00019726,2]
[407875144,1772867442457,-168.0,0.0001974,2]
[407875145,1772867442466,-894.19061326,0.00019766,2]
[407875146,1772867442476,-150.0,0.00019773,30]
[407875147,1772867442490,-241.0,0.00019773,30]
[407875148,1772867442499,-150.0,0.00019781,2]
[407875149,1772867442508,-500.0,0.00019781,2]
[407875150,1772867442518,-150.0,0.00019781,2]
[407875151,1772867442528,-228.41522971,0.00019781,2]
[407875152,1772867442537,-800.0,0.000198,7]
[407875153,1772867442546,-2163.6249,0.000198,2]
[407875154,1772867442557,-62597.4420038,0.0001981,2]
[407875155,1772867442566,-927.27566595,0.00019821,2]
[407875157,1772867442575,-161.32097098,0.00019836,2]
[407875159,1772867442584,-500.85972923,0.00019836,2]
[407875160,1772867442593,-150.34450835,0.00019836,2]
[407875161,1772867442603,-961.58486559,0.00019876,2]
[407875162,1772867442611,-600.0,0.0001989,2]
[407875163,1772867442620,-150.0,0.0001989,2]
[407875164,1772867442629,-150.0,0.0001989,2]
[407875165,1772867442638,-32918.3967,0.000199,2]
[407875166,1772867442649,-8479.703,0.000199,2]
[407875167,1772867442663,-1000.0,0.000199,2]
[407875168,1772867442673,-189.66285771,0.000199,2]
[407875169,1772867442683,-3619.52696627,0.000199,2]
[407875171,1772867442692,-25000.0,0.000199,3]
[407875173,1772867442701,-800.0,0.000199,7]
[407875175,1772867442710,-2947.99147517,0.000199,2]
[407875178,1772867442719,-241.38212231,0.000199,3]
[407875179,1772867442728,-3060.17169489,0.000199,2]
[407875180,1772867442738,-770.15237636,0.000199,2]
[407875181,1772867442746,-200.0,0.00019901,2]
[407875182,1772867442756,-250.0,0.00019921,2]
[407875183,1772867442765,-708.0,0.00019928,2]
[407875184,1772867442774,-250.0,0.00019928,2]
[407875185,1772867442783,-250.0,0.00019928,2]
[407875186,1772867442792,-250.0,0.00019928,2]
[407875187,1772867442801,-250.0,0.00019928,2]
[407875188,1772867442810,-250.0,0.00019928,2]
[407875189,1772867442819,-250.0,0.00019928,2]
[407875190,1772867442828,-250.0,0.00019928,2]
[407875191,1772867442837,-219.0,0.00019928,2]
[407875192,1772867442846,-997.16350561,0.00019931,2]
[407875193,1772867442854,-509.18787181,0.0001998,2]
[407875194,1772867442864,-220.36614209,0.0001999,2]
[407875195,1772867442873,-532980.8356901,0.00019997,2]
[407875196,1772867442882,-20103.6047761,0.00019997,2]
[407875197,1772867442891,-151.0,0.00019997,2]
[407875198,1772867442900,-256.75572098,0.00019999,2]
[407875199,1772867442909,-168427.89971835,0.0002,2]
[407875200,1772867442918,-132650.75387157,0.0002,2]
[407875201,1772867442927,-2953.98353477,0.0002,7]
[407875202,1772867442936,-501.32581746,0.0002,10]
[407875203,1772867442945,-532.31036079,0.0002,7]
[407875204,1772867442955,-1435.21,0.0002,120]
[407875205,1772867442963,-12980.51845403,0.0002,2]
[407875206,1772867442973,-726.32822673,0.0002,120]
[407875207,1772867442982,-1841.54488066,0.0002,120]
[407875208,1772867442991,-700.67637051,0.0002,14]
[407875209,1772867443000,-281.34618741,0.0002,2]
[407875210,1772867443008,-281.34618741,0.0002,2]
[407875211,1772867443018,-281.34618741,0.0002,2]
[407875213,1772867443027,-281.34618741,0.0002,2]
[407875214,1772867443037,-281.34618741,0.0002,2]
[407875215,1772867443046,-281.34618741,0.0002,2]
[407875216,1772867443056,-281.34618741,0.0002,2]
[407875217,1772867443065,-281.34618741,0.0002,2]
[407875218,1772867443074,-281.3461874,0.0002,2]
[407875219,1772867443083,-281.3461874,0.0002,2]
[407875220,1772867443094,-281.3461874,0.0002,2]
[407875221,1772867443103,-281.3461874,0.0002,2]
[407875222,1772867443113,-281.3461874,0.0002,2]
[407875223,1772867443122,-281.3461874,0.0002,2]
[407875224,1772867443131,-281.3461874,0.0002,2]
[407875225,1772867443140,-281.3461874,0.0002,2]
[407875226,1772867443149,-281.3461874,0.0002,2]
[407875227,1772867443158,-281.3461874,0.0002,2]
[407875228,1772867443167,-281.3461874,0.0002,2]
[407875229,1772867443176,-281.3461874,0.0002,2]
[407875230,1772867443186,-1658.46,0.0002,30]
[407875231,1772867443195,-423.47,0.0002,7]
[407875232,1772867443204,-1000.0,0.0002,2]
[407875233,1772867443214,-154.61176372,0.0002,2]
[407875234,1772867443223,-1110.89646754,0.0002,2]
[407875235,1772867443232,-1000.0,0.0002,3]
[407875236,1772867443242,-1000.0,0.0002,4]
[407875237,1772867443251,-661316.47914615,0.0002,2]
[407875238,1772867443308,-20260.0,0.0002,2]
[407875239,1772867443330,-4439643.01504268,0.0002,2]
[407875252,1772867445645,-564.671,0.000154,2]
[407875253,1772867445657,-676.0,0.000154,2]
[407875254,1772867445821,-513.9784,0.000154,2]
[407875257,1772868148652,150.0,0.000114,2]
[407875258,1772868399119,-150.0,0.00013,2]
[407875259,1772868399142,-62.04759392,0.00013037,2]
[407875269,1772868631811,-55196.0,0.000129,2]
[407875271,1772868631821,-1200.0,0.00012999,2]
[407875273,1772868631830,-150.0,0.00012999,2]
[407875275,1772868631840,-250.0,0.00013,2]
[407875277,1772868631850,-257.0,0.00013,2]
[407875279,1772868631859,-200.0,0.00013002,2]
[407875281,1772868631868,-325.44038795,0.00013035,2]
[407875283,1772868631878,-500.0,0.00013074,2]
[407875285,1772868631888,-312.0,0.00013099,2]
[407875287,1772868631897,-5532.0,0.000133,3]
[407875289,1772868631907,-520.0,0.00013333,2]
[407875291,1772868631917,-510.99997,0.00013333,2]
[407875293,1772868631926,-5532.0,0.000137,5]
[407875294,1772868631936,-1507.35,0.00014018,2]
[407875295,1772868631945,-187.0,0.00014058,2]
[407875296,1772868631955,-255.0,0.00014104,2]
[407875297,1772868631964,-300.0,0.0001419,2]
[407875298,1772868631974,-300.0,0.0001419,2]
[407875299,1772868631983,-5000.0,0.00014299,2]
[407875301,1772868631992,-250.0,0.00014299,2]
[407875303,1772868632003,-1680.0,0.00014299,2]
[407875305,1772868632015,-193.0,0.000143,2]
[407875307,1772868632024,-659.0,0.00014314,2]
[407875309,1772868632033,-150.0,0.00014322,2]
[407875311,1772868632044,-1382.0,0.00014342,2]
[407875313,1772868632053,-513.0,0.00014371,2]
[407875315,1772868632063,-867.55863168,0.00014381,2]
[407875317,1772868632072,-490.0,0.00014402,2]
[407875318,1772868632085,-1240.0,0.00014403,2]
[407875321,1772868632095,-1538.0,0.0001443,2]
[407875323,1772868632105,-718.0,0.00014459,2]
[407875325,1772868632115,-168.0,0.0001449,2]
[407875327,1772868632125,-1564.0,0.00014605,2]
[407875330,1772868632134,-446.0,0.00014634,2]
[407875332,1772868632143,-1507.35,0.00014719,2]
[407875334,1772868632152,-200.0,0.00014881,2]
[407875336,1772868632161,-360.79,0.00015124,2]
[407875339,1772868632171,-433.0,0.000153,2]
[407875341,1772868632184,-500.0,0.00015303,2]
[407875343,1772868632194,-9999.99,0.0001531,2]
[407875345,1772868632203,-9999.99,0.0001531,2]
[407875347,1772868632212,-150.99,0.0001531,2]
[407875349,1772868632222,-3713.87,0.0001531,2]
[407875351,1772868632230,-6337.89,0.0001531,2]
[407875353,1772868632240,-1206.61,0.0001531,2]
[407875355,1772868632249,-150.99,0.0001531,2]
[407875357,1772868632259,-9999.99,0.0001531,2]
[407875359,1772868632269,-2110.46,0.0001531,2]
[407875361,1772868632278,-609.85,0.0001531,2]
[407875363,1772868632288,-999.99,0.0001531,2]
[407875364,1772868632298,-7999.59241333,0.0001531,2]
[407875365,1772868632310,-2000.39758667,0.0001531,2]
[407875366,1772868632322,-9999.99,0.0001531,2]
[407875367,1772868632331,-3197.17,0.0001531,2]
[407875368,1772868632341,-1507.35,0.0001542,2]
[407875369,1772868632352,-10307.7945296,0.00015481,2]
[407875370,1772868632362,-1567.42548618,0.00015562,2]
[407875371,1772868632378,-299.23478,0.00015562,2]
[407875372,1772868632389,-743.4792702,0.00015562,2]
[407875373,1772868632405,-351.43046362,0.00015562,2]
[407875374,1772868632414,-1600.0,0.00015581,2]
[407875375,1772868632424,-166.68,0.00015591,2]
[407875376,1772868632433,-500.0,0.00015599,2]
[407875377,1772868632442,-500.0,0.00015599,2]
[407875378,1772868632452,-500.0,0.00015599,2]
[407875379,1772868632465,-176.8140085,0.00015599,2]
[407875380,1772868632478,-323.1859915,0.00015599,2]
[407875381,1772868632487,-500.0,0.00015599,2]
[407875382,1772868632496,-500.0,0.00015599,2]
[407875383,1772868632505,-500.0,0.00015599,2]
[407875384,1772868632515,-500.0,0.00015599,2]